Cogmind - Beta 14 @@@ ROGUE MODE // 2024.08.26 @ 11:05:15 Player: alexustasu Result: Destroyed by Z-Imprinter with Zionite Laser-M Performance ------------- Evolutions (3) 1500 Regions Visited (10) 2000 Robots Destroyed (69) 345 Value Destroyed (2200) 2200 Prototype IDs (25) 500 Alien Tech Used (0) 0 Bonus (658) 658 TOTAL SCORE: 7203 Bonus ------- High Alert Combat Kills 19 Follower Combat Kills 39 Aligned with FarCom 300 Met Imprinter 300 Cogmind --------- Core Integrity 0/700 Matter 300/300 Energy 100/100 System Corruption 0% Temperature Cool (9) Movement Core (400) Ox7 Location -7/Deep Caves Parts ------- > --- POWER (2) -------- (None) > --- PROPULSION (4) --- (None) > --- UTILITY (5) ------ Improved Cooling System Large Storage Unit > --- WEAPON (2) ------- (None) > --- INVENTORY (15) --- Light Deuterium Engine Light Nuclear Core Light Angular Momentum Engine Large Storage Unit Advanced Weight Redist. System Hacking Suite Lightning Gun Precision Beam Rifle Improved Spread Laser Plasma Cannon Heavy Ion Cannon Flak Gun Heavy Battle Rifle Makeshift Spear Peak State ------------ > --- POWER ------------ Improved Deuterium Engine Micro Nuclear Core > --- PROPULSION ------- Flying Fortress v7 > --- UTILITY ---------- Improved Heat Sink Large Storage Unit Recoil Stabilizer Kinecellerator High-powered Tractor Beam > --- WEAPON ----------- Improved Spread Laser Minigun > --- INVENTORY -------- Light Deuterium Engine Light Nuclear Core Improved Deuterium Engine Light Angular Momentum Engine Improved Cooling System Large Storage Unit Advanced Weight Redist. System Improved Salvage Targeting Computer Hacking Suite Precision Beam Rifle Precision Beam Rifle Gatling Laser Plasma Cannon Heavy Ion Cannon Minigun [Rating: 67] Favorites ----------- Power Micro Nuclear Core Engine Ion Engine Power Core Micro Nuclear Core Propulsion Light Treads Treads Light Treads Leg Aluminum Leg Flight Unit Flying Fortress v7 Utility Large Storage Unit Device Improved Heat Sink Storage Large Storage Unit Processor Targeting Computer Protection Improved Light Armor Plating Weapon Minigun Energy Gun Gatling Laser Energy Cannon Beam Cannon Ballistic Gun Minigun Launcher Grenade Launcher Build | -11 -10 -10 -10 -9 -8 -7 -7 -7 -7 -7 ------- Run | Yrd Mat Min Exi Min Mat Fac Low Low Zio Dee Slots Evolved 6 | . . . . . 4 2 . . . . Power 1 | . . . . . . 1 . . . . Propulsion 2 | . . . . . 2 . . . . . Utility 3 | . . . . . 2 1 . . . . Weapon . | . . . . . . . . . . . Parts Attached 90 | 6 22 10 . 1 18 18 10 4 . 1 Power 12 | 1 1 1 . . 2 4 3 . . . Engine 6 | 1 . 1 . . . 2 2 . . . Core 6 | . 1 . . . 2 2 1 . . . Reactor . | . . . . . . . . . . . Propulsion 12 | 2 8 . . 1 1 . . . . . Treads 5 | 2 2 . . 1 . . . . . . Leg 6 | . 6 . . . . . . . . . Wheel . | . . . . . . . . . . . Hover . | . . . . . . . . . . . Flight 1 | . . . . . 1 . . . . . Utility 31 | 1 5 1 . . 8 8 4 4 . . Device 22 | . 3 1 . . 5 7 3 3 . . Storage 3 | 1 1 . . . 1 . . . . . Processor 3 | . 1 . . . 1 . 1 . . . Hackware . | . . . . . . . . . . . Protection 3 | . . . . . 1 1 . 1 . . Artifact . | . . . . . . . . . . . Weapon 35 | 2 8 8 . . 7 6 3 . . 1 Energy Gun 6 | 1 1 1 . . . 1 2 . . . Energy Cannon 4 | . . 3 . . 1 . . . . . Ballistic Gun 18 | 1 5 2 . . 4 4 1 . . 1 Ballistic Cannon . | . . . . . . . . . . . Launcher 7 | . 2 2 . . 2 1 . . . . Special Weapon . | . . . . . . . . . . . Impact Weapon . | . . . . . . . . . . . Slashing Weapon . | . . . . . . . . . . . Piercing Weapon . | . . . . . . . . . . . Special Melee Weapon . | . . . . . . . . . . . Unidentified Prototypes 2 | . . . . . . 1 1 . . . Parts Lost 25 | . 1 2 . . 2 4 4 3 1 8 Power 3 | . . 1 . . . . . . . 2 Propulsion 1 | . . . . . . . . . . 1 Utility 15 | . 1 1 . . 2 2 3 3 1 2 Weapon 6 | . . . . . . 2 1 . . 3 Highest Loss Streak 8 | . 1 2 . . 2 2 2 2 1 8 To Critical Strikes . | . . . . . . . . . . . Average Slot Usage (%) 85 | . 99 99 100 100 71 75 75 75 73 58 Engine 7 | . 9 10 14 14 3 4 7 7 7 5 Core 5 | . 4 3 . . 5 10 6 7 7 6 Treads 8 | . 2 28 28 28 . . . . . . Leg 5 | . 25 . . . . . . . . . Flight 3 | . . . . . 9 7 7 7 7 4 Device 18 | . 10 13 14 14 22 25 29 22 19 13 Storage 10 | . 14 14 14 14 9 7 7 7 7 7 Protection 2 | . . . . . 3 4 . 2 7 5 Energy Gun 1 | . . . . . . . 1 7 7 4 Energy Cannon 2 | . . 2 14 14 1 . . . . . Ballistic Gun 16 | . 23 22 14 14 15 13 12 7 7 7 Launcher 1 | . 3 2 . . 1 1 . . . . Peak Build Rating 67 | 6 12 12 12 13 54 65 67 66 66 63 Average Rating 36 | 4 10 10 10 12 49 63 64 65 64 49 On Entrance 32 | . 6 12 9 12 13 53 62 65 66 63 Naked Turns . | . . . . . . . . . . . Heaviest Build 59 | 14 22 22 22 22 43 54 59 50 50 49 Greatest Support 50 | 40 40 40 40 43 50 50 50 50 50 50 Greatest Overweight (x) 16 | 1 1 . . . . 1 1 . . 16 Average Overweight (x) . | . . . . . . . . . . . Largest Inventory Capacity 15 | 8 10 10 10 10 15 15 15 15 15 15 Average Capacity 11 | 6 8 10 10 10 11 15 15 15 15 15 Most Carried 15 | 6 10 10 10 10 15 15 15 15 15 15 Average Carried 11 | 4 7 9 9 9 10 14 14 13 15 14 Final Capacity 15 | 8 10 10 10 10 15 15 15 15 15 15 Final Carried 15 | 6 10 10 10 10 15 15 12 15 15 14 Class Distribution -------------------- 92% | Mutant 7% | Scout Dominant Class ---------------- Mutant | -10/Materials Mutant | -10/Mines Mutant | -10/Exiles Mutant | -9/Mines Mutant | -8/Materials Mutant | -7/Factory Mutant | -7/Lower Caves Mutant | -7/Lower Caves Mutant | -7/Zion Mutant | -7/Deep Caves Resources | -11 -10 -10 -10 -9 -8 -7 -7 -7 -7 -7 ----------- Run | Yrd Mat Min Exi Min Mat Fac Low Low Zio Dee Matter Collected 2049 | 189 341 376 23 143 380 342 140 115 . . Remotely 737 | . 135 278 . . . 184 140 . . . Salvage Created 2445 | . 487 308 . . 594 354 222 480 . . Parts 125 | . 30 17 . . 28 25 8 17 . . Haulers Intercepted 2 | . 1 . . . 1 . . . . . Recyclers Shooed 3 | . . 2 . . 1 . . . . . Parts Field Recycled 27 | . . . . . 25 2 . . . . Retrieved Matter 206 | . . . . . 199 7 . . . . Parts Self-Destructed 26 | . . . . . . . 14 12 . . Prevented 2 | . . . . . . . 2 . . . Kills | -11 -10 -10 -10 -9 -8 -7 -7 -7 -7 -7 ------- Run | Yrd Mat Min Exi Min Mat Fac Low Low Zio Dee Combat Hostiles Destroyed 57 | . 14 7 . . 12 11 4 9 . . Guns 39 | . 7 5 . . 8 6 4 9 . . AOE 18 | . 7 2 . . 4 5 . . . . Classes Destroyed 13 | . 6 3 . . 2 1 1 . . . Worker 1 | . 1 . . . . . . . . . Builder 1 | . . 1 . . . . . . . . Tunneler 2 | . . 2 . . . . . . . . Hauler 2 | . 1 . . . 1 . . . . . Recycler 3 | . 1 1 . . 1 . . . . . Watcher 4 | . 2 . . . 2 . . . . . Swarmer 17 | . 6 . . . 4 6 . 1 . . Grunt 26 | . 8 6 . . 4 1 3 4 . . Brawler 3 | . . . . . . . 1 2 . . Sentry 7 | . . . . . 3 2 . 2 . . Hunter 2 | . . . . . 1 1 . . . . Programmer 1 | . . . . . . 1 . . . . Assembled 1 | . . 1 . . . . . . . . Best Kill Streak 8 | . 8 7 . . 4 4 3 6 . . Combat Bots Only 7 | . 7 4 . . 4 4 3 6 . . Max Kills in Single Turn 3 | . 2 2 . . 2 3 1 1 . . Gunslinging . | . . . . . . . . . . . Exploded 3 | . 2 1 . . 2 3 . . . . Melee . | . . . . . . . . . . . Uniques/NPCs Destroyed . | . . . . . . . . . . . Combat | -11 -10 -10 -10 -9 -8 -7 -7 -7 -7 -7 -------- Run | Yrd Mat Min Exi Min Mat Fac Low Low Zio Dee Hostile Shots Fired 471 | . 53 36 . . 52 133 33 41 79 44 Missed 206 | . 19 4 . . 23 58 18 20 52 12 Damage Taken 4437 | . 450 516 . . 431 900 216 310 539 1075 Core 875 | . 49 75 . . 44 40 11 67 116 473 Absorbed by Shields 165 | . . . . . 4 133 . 28 . . Regen/Repaired (Parts) 8 | . . . . . . . . . 8 . Core Remaining (%) 80 | 100 . . . 50 92 . . . . . Volleys Fired 210 | . 50 49 . . 38 44 12 16 . 1 Largest 2 | . 2 2 . . 2 2 2 2 . 2 Hottest 110 | . 46 110 . . 55 55 105 105 . 58 Shots Fired 330 | . 73 69 . . 65 71 21 29 . 2 Gun 273 | . 66 41 . . 58 56 21 29 . 2 Cannon 11 | . . 11 . . . . . . . . Launcher 46 | . 7 17 . . 7 15 . . . . Special . | . . . . . . . . . . . Kinetic 247 | . 66 36 . . 58 56 16 13 . 2 Thermal 37 | . . 16 . . . . 5 16 . . Explosive 46 | . 7 17 . . 7 15 . . . . Electromagnetic . | . . . . . . . . . . . Robot Hit Streak 17 | . 17 8 . . 8 12 6 12 . 12 Robot Miss Streak 4 | . 2 3 . . 4 2 2 3 . 1 Penetration Max . | . . . . . . . . . . . Secondary Targets 2 | . . . . . 1 . . 1 . . Max Gunslinging Chain 1 | . . . . . 1 . . 1 . . Shots Hit Robots 214 | . 51 35 . . 43 45 14 25 . 1 Core Hits 143 | . 26 23 . . 32 26 11 25 . . Critical Kills . | . . . . . . . . . . . Critical Parts Destroyed . | . . . . . . . . . . . Critical Strikes 2 | . . 1 . . . 1 . . . . Burn 1 | . . 1 . . . . . . . . Destroy 1 | . . . . . . 1 . . . . Melee Attacks . | . . . . . . . . . . . Impact . | . . . . . . . . . . . Slashing . | . . . . . . . . . . . Piercing . | . . . . . . . . . . . Sneak Attacks . | . . . . . . . . . . . Combat Hostiles . | . . . . . . . . . . . Follow-up Attacks . | . . . . . . . . . . . Damage Inflicted 5035 | . 1386 779 . . 1031 1030 260 533 . 16 Guns 3364 | . 719 411 . . 666 759 260 533 . 16 Cannons 69 | . . 69 . . . . . . . . Explosions 1598 | . 665 297 . . 365 271 . . . . Melee . | . . . . . . . . . . . Ramming 4 | . 2 2 . . . . . . . . Kinetic 2887 | . 719 359 . . 666 759 180 188 . 16 Thermal 618 | . 72 121 . . . . 80 345 . . Explosive 1526 | . 593 297 . . 365 271 . . . . Electromagnetic . | . . . . . . . . . . . Impact . | . . . . . . . . . . . Slashing . | . . . . . . . . . . . Piercing . | . . . . . . . . . . . Highest Corruption 5 | . . . . . . . . 5 5 . Average Corruption 5 | . . . . . . . . 5 5 . Corruption Purged . | . . . . . . . . . . . Corruption Blocked . | . . . . . . . . . . . Effects 5 | . . . . . . . . 3 2 . Message Errors 1 | . . . . . . . . 1 . . Matter Fused 1 | . . . . . . . . 1 . . Heat Flow Errors 3 | . . . . . . . . 1 2 . Overload Shots . | . . . . . . . . . . . Overflow Damage 88 | . 81 7 . . . . . . . . Projectiles . | . . . . . . . . . . . Explosions 88 | . 81 7 . . . . . . . . Melee . | . . . . . . . . . . . Knockbacks . | . . . . . . . . . . . Impact . | . . . . . . . . . . . Kinetic . | . . . . . . . . . . . Secondary . | . . . . . . . . . . . Self-Inflicted Damage 256 | . 97 63 . . . 96 . . . . Shots 12 | . 2 4 . . . 6 . . . . Rammed 1 | . . 1 . . . . . . . . Targets Rammed 2 | . 1 1 . . . . . . . . Kicked 1 | . 1 . . . . . . . . . Crushed . | . . . . . . . . . . . Highest Temperature 328 | . 40 318 . . 150 328 78 160 167 . Average Temperature 72 | . 8 108 . . 43 91 25 65 83 . Received Heat Transfer 1314 | . 144 264 . . 105 244 102 92 75 288 Effects 5 | . . . . . . 5 . . . . Shutdowns 1 | . . . . . . 1 . . . . Energy Bleed 2 | . . . . . . 2 . . . . Interference 1 | . . . . . . 1 . . . . Matter Decay 1 | . . . . . . 1 . . . . Siege Activations . | . . . . . . . . . . . Robots Corrupted . | . . . . . . . . . . . Combat Hostiles . | . . . . . . . . . . . Parts Fried . | . . . . . . . . . . . Impact Corruptions . | . . . . . . . . . . . Robots Melted . | . . . . . . . . . . . Combat Hostiles . | . . . . . . . . . . . Parts Melted 2 | . . 2 . . . . . . . . Heat Transferred 1395 | . 50 370 . . . . 175 800 . . Parts Sabotaged . | . . . . . . . . . . . Parts Stolen . | . . . . . . . . . . . Parts Stripped . | . . . . . . . . . . . Power Chain Reactions . | . . . . . . . . . . . Alert | -11 -10 -10 -10 -9 -8 -7 -7 -7 -7 -7 ------- Run | Yrd Mat Min Exi Min Mat Fac Low Low Zio Dee Peak Influence 458 | . 458 316 . 32 353 272 . . . . Initial 136 | . . 136 . . 4 105 . . . . Average 142 | . 162 157 . 4 205 112 . . . . Maximum Alert Level 2 | . 2 1 . . 1 1 . . . . Low Security (%) 72 | 100 60 71 . 100 39 96 . . . . Level 1 27 | . 37 28 . . 60 3 . . . . Level 2 . | . 2 . . . . . . . . . Level 3 . | . . . . . . . . . . . Level 4 . | . . . . . . . . . . . Level 5 . | . . . . . . . . . . . High Security . | . . . . . . . . . . . Max Security . | . . . . . . . . . . . Squads Dispatched 9 | . 2 . . . 2 4 . 1 . . Investigation 4 | . 1 . . . 1 2 . . . . Extermination 1 | . . . . . . 1 . . . . Reinforcement 2 | . 1 . . . . 1 . . . . Assault 1 | . . . . . . . . 1 . . Garrison 1 | . . . . . 1 . . . . . Intercept . | . . . . . . . . . . . Searches Triggered . | . . . . . . . . . . . Construction Impeded . | . . . . . . . . . . . Haulers Reinforced . | . . . . . . . . . . . Active Scanning Responses . | . . . . . . . . . . . Cargo Convoy Interrupts . | . . . . . . . . . . . Stealth | -11 -10 -10 -10 -9 -8 -7 -7 -7 -7 -7 --------- Run | Yrd Mat Min Exi Min Mat Fac Low Low Zio Dee Distress Signals 3 | . 1 . . . 1 1 . . . . Communications Jammed . | . . . . . . . . . . . Distress Signals . | . . . . . . . . . . . Times Spotted 164 | . 21 6 . . 15 21 21 18 59 3 Peak Tracking Total 31 | . 5 2 . . 4 4 9 11 31 4 Tactical Retreats 28 | . 2 . . . 1 5 5 6 9 . Traps | -11 -10 -10 -10 -9 -8 -7 -7 -7 -7 -7 ------- Run | Yrd Mat Min Exi Min Mat Fac Low Low Zio Dee Traps Triggered 3 | . . . . . . 3 . . . . Indirectly . | . . . . . . . . . . . Trap Hack Attempts . | . . . . . . . . . . . Triggered . | . . . . . . . . . . . Disarmed . | . . . . . . . . . . . Reprogrammed . | . . . . . . . . . . . Reused . | . . . . . . . . . . . Traps Extracted . | . . . . . . . . . . . Installed . | . . . . . . . . . . . Triggered 1 | . . . . . . . 1 . . . Machines | -11 -10 -10 -10 -9 -8 -7 -7 -7 -7 -7 ---------- Run | Yrd Mat Min Exi Min Mat Fac Low Low Zio Dee Machines Disabled 2 | . 1 . . . 1 . . . . . Max in Single Turn 1 | . 1 . . . 1 . . . . . Garrison Access 1 | . . . . . 1 . . . . . Machines Repaired . | . . . . . . . . . . . Machines Dismantled . | . . . . . . . . . . . Machines Sabotaged . | . . . . . . . . . . . Overloaded Fab Kills . | . . . . . . . . . . . Hacking | -11 -10 -10 -10 -9 -8 -7 -7 -7 -7 -7 --------- Run | Yrd Mat Min Exi Min Mat Fac Low Low Zio Dee Machines Accessed 24 | . 8 . 1 . 7 8 . . . . Terminals 17 | . 6 . . . 4 7 . . . . Fabricators . | . . . . . . . . . . . Repair Stations . | . . . . . . . . . . . Recycling Units 3 | . 2 . . . 1 . . . . . Scanalyzers 1 | . . . . . 1 . . . . . Garrison Access 2 | . . . . . 1 1 . . . . Total Hacks 69 | . 26 . 1 . 17 25 . . . . Successful 25 | . 9 . 1 . 6 9 . . . . Failed 44 | . 17 . . . 11 16 . . . . Catastrophic 11 | . 3 . . . 3 5 . . . . Database Lockouts . | . . . . . . . . . . . Manual 35 | . 9 . 1 . 8 5 . . 12 . Terminals 53 | . 20 . . . 10 23 . . . . Fabricators . | . . . . . . . . . . . Repair Stations . | . . . . . . . . . . . Recycling Units 8 | . 6 . . . 2 . . . . . Scanalyzers 3 | . . . . . 3 . . . . . Garrison Access 4 | . . . . . 2 2 . . . . Terminal Hacks 16 | . 5 . 1 . 1 9 . . . . Record 3 | . . . . . . 3 . . . . Branch Access Points 4 | . 2 . . . 1 1 . . . . Terminal Index 2 | . 1 . . . . 1 . . . . Locate Traps 2 | . 1 . . . . 1 . . . . Security Status 1 | . . . . . . 1 . . . . Hauler Manifests 1 | . . . . . . 1 . . . . Zone Layout 2 | . 1 . . . . 1 . . . . Derelict Proto ID Bank 1 | . . . 1 . . . . . . . Fabricator Hacks . | . . . . . . . . . . . Repair Station Hacks . | . . . . . . . . . . . Recycling Unit Hacks 6 | . 4 . . . 2 . . . . . Report Inventory 4 | . 3 . . . 1 . . . . . Retrieve Matter 1 | . 1 . . . . . . . . . Retrieve Components 1 | . . . . . 1 . . . . . Scanalyzer 2 | . . . . . 2 . . . . . Insert Component 1 | . . . . . 1 . . . . . Analyze 1 | . . . . . 1 . . . . . Garrison Access Hacks 1 | . . . . . 1 . . . . . Seal Access 1 | . . . . . 1 . . . . . Unauthorized Hacks . | . . . . . . . . . . . Terminals . | . . . . . . . . . . . Fabricators . | . . . . . . . . . . . Repair Stations . | . . . . . . . . . . . Recycling Units . | . . . . . . . . . . . Scanalyzers . | . . . . . . . . . . . Garrison Access . | . . . . . . . . . . . Data Cores Recovered . | . . . . . . . . . . . Used . | . . . . . . . . . . . Hacking Detections 16 | . 6 . . . 5 5 . . . . Full Trace Events 6 | . 2 . . . 2 2 . . . . Feedback Events . | . . . . . . . . . . . Feedback Blocked . | . . . . . . . . . . . Robot Schematics Acquired . | . . . . . . . . . . . Robots Built . | . . . . . . . . . . . Authchips . | . . . . . . . . . . . Time . | . . . . . . . . . . . Total Robot Build Rating . | . . . . . . . . . . . Part Schematics Acquired 1 | . . . . . 1 . . . . . Parts Built . | . . . . . . . . . . . Authchips . | . . . . . . . . . . . Time . | . . . . . . . . . . . Total Part Build Rating . | . . . . . . . . . . . Parts Repaired . | . . . . . . . . . . . Time . | . . . . . . . . . . . Parts Recycled . | . . . . . . . . . . . Recycled Matter . | . . . . . . . . . . . Retrieved Matter 159 | . 159 . . . . . . . . . Retrieved Components 9 | . . . . . 9 . . . . . Parts Scanalyzed 1 | . . . . . 1 . . . . . Part Schematics Acquired 1 | . . . . . 1 . . . . . Parts Damaged . | . . . . . . . . . . . Bothacking | -11 -10 -10 -10 -9 -8 -7 -7 -7 -7 -7 ------------ Run | Yrd Mat Min Exi Min Mat Fac Low Low Zio Dee Used RIF Installer . | . . . . . . . . . . . Robots Hacked . | . . . . . . . . . . . Non-combat . | . . . . . . . . . . . Combat . | . . . . . . . . . . . Robot Hacks Applied . | . . . . . . . . . . . Relay Couplers Released . | . . . . . . . . . . . Fabnet Peak Effective % . | . . . . . . . . . . . Robots Rewired . | . . . . . . . . . . . Allies Hacked . | . . . . . . . . . . . Hacks Repelled . | . . . . . . . . . . . Allies | -11 -10 -10 -10 -9 -8 -7 -7 -7 -7 -7 -------- Run | Yrd Mat Min Exi Min Mat Fac Low Low Zio Dee Total Allies 3 | . . 3 . . . . . . . . Largest Group 3 | . . 3 1 1 . . . . . . Highest-Rated Group 40 | . . 40 16 16 . . . . . . Highest-Rated Ally 16 | . . 16 16 16 . . . . . . Total Orders 2 | . . 2 . . . . . . . . FOLLOW 1 | . . 1 . . . . . . . . AID 1 | . . 1 . . . . . . . . Ally Attacks 13 | . . 6 . 7 . . . . . . Total Damage 127 | . . 67 . 60 . . . . . . Kills 2 | . . 1 . 1 . . . . . . Allies Corrupted . | . . . . . . . . . . . Allies Melted . | . . . . . . . . . . . Intel | -11 -10 -10 -10 -9 -8 -7 -7 -7 -7 -7 ------- Run | Yrd Mat Min Exi Min Mat Fac Low Low Zio Dee Robot Analysis Total . | . . . . . . . . . . . Derelict Logs Recovered 7 | . . 3 . 1 . . . 1 2 . Drone Launches . | . . . . . . . . . . . Drone Recoveries . | . . . . . . . . . . . Exploration | -11 -10 -10 -10 -9 -8 -7 -7 -7 -7 -7 ------------- Run | Yrd Mat Min Exi Min Mat Fac Low Low Zio Dee Turns Passed 5801 | 71 1138 933 394 243 673 1119 336 344 425 125 Spaces Moved 5132 | 37 512 465 245 149 679 1036 521 488 829 171 Core 9 | 3 . . . . . . . . . 6 Treads 942 | 34 49 465 245 149 . . . . . . Legs 463 | . 463 . . . . . . . . . Wheels . | . . . . . . . . . . . Hover . | . . . . . . . . . . . Flight 3718 | . . . . . 679 1036 521 488 829 165 Fastest Speed 50 | 50 120 160 160 160 50 50 50 50 50 50 Average Speed 77 | 153 124 160 160 160 50 50 50 50 50 70 Slowest Speed 850 | 160 190 160 160 160 50 150 150 50 50 850 Overloaded Moves . | . . . . . . . . . . . Propulsion Burnouts . | . . . . . . . . . . . Robots Hopped 15 | . . . . . 1 10 . 1 3 . Cave-ins Triggered . | . . . . . . . . . . . Exploration Rate (%) 52 | 4 62 86 69 31 49 24 62 75 82 32 Regions Visited 10 Branch Regions 7 Pre-discovered Areas 3 | . . 2 . . . . . . 1 . Known Exits Taken 4 | . 1 . . . 1 1 1 . . . Unknown Exits Taken 6 | 1 . 1 1 1 . . . 1 1 . Scrap Searched 4 | . . 1 . 1 . . 1 1 . . Spaces Dug 51 | . . . . . . 51 . . . . Terrain Destroyed 285 | . 73 80 . . 33 99 . . . . Melee . | . . . . . . . . . . . Projectile . | . . . . . . . . . . . AOE 285 | . 73 80 . . 33 99 . . . . Terrain Rammed . | . . . . . . . . . . . Walls Destroyed . | . . . . . . . . . . . Machines Disabled . | . . . . . . . . . . . Actions | -11 -10 -10 -10 -9 -8 -7 -7 -7 -7 -7 --------- Run | Yrd Mat Min Exi Min Mat Fac Low Low Zio Dee Total 6680 | 48 956 590 249 157 972 1570 574 556 835 173 Wait 1089 | . 340 60 . 1 181 429 25 43 10 . Move 5094 | 36 511 464 244 148 676 1017 520 485 822 171 Hop 13 | . . . . . 1 8 . 1 3 . Pick Up 84 | 6 12 4 1 3 32 16 4 6 . . Fast Attach 21 | 6 8 . . . 2 5 . . . . Attach 22 | . 1 2 . . 4 6 5 3 . 1 Detach 2 | . 1 . . . . 1 . . . . Swap 47 | . 13 8 . 1 12 7 5 1 . . Drop 78 | . 19 2 4 4 26 19 3 1 . . Fire 210 | . 50 49 . . 38 44 12 16 . 1 Melee . | . . . . . . . . . . . Ram . | . . . . . . . . . . . Kick 1 | . 1 . . . . . . . . . Crush 1 | . . 1 . . . . . . . . Escape Stasis 18 | . . . . . . 18 . . . . Rewire . | . . . . . . . . . . . Trap . | . . . . . . . . . . . Miscellaneous . | . . . . . . . . . . . Route ------- -11/Scrapyard -10/Materials (discovered 3 exits: [*Mat x2] / *Min) -10/Mines (discovered 3 exits: [*Mat x2] / *Exi) -10/Exiles (discovered 2 exits: [*Min x2]) -9/Mines -8/Materials (discovered 3 exits: *Fac x3) -7/Factory (discovered 4 exits: Sto x2 / *Low x2) -7/Lower Caves -7/Lower Caves (discovered 2 exits: [*Fac] / *Zio) -7/Zion -7/Deep Caves History --------- Turn | Location | Event 11 | -11/Scrapyard | Discovered new exit (range 15) 72 | -11/Scrapyard | Entered Materials 108 | -10/Materials | Identified exit to Mines 300 | -10/Materials | Build established: Mutant 705 | -10/Materials | Discovered new exit (range 13) 803 | -10/Materials | Destroyed 7 combat bots 848 | -10/Materials | Discovered new exit (range 16) 1210 | -10/Materials | Entered Mines 1239 | -10/Mines | Learned location of 2 exits from Materials 1377 | -10/Mines | Discovered new exit (range 14) 1391 | -10/Mines | Discovered new exit (range 11) 1393 | -10/Mines | Learned location of Mines (-9) 1673 | -10/Mines | Assisted by bots powering up and referring to "LRC-V3" 1753 | -10/Mines | Learned location of Storage (-7) 1945 | -10/Mines | Excavation squad dispatched 1945 | -10/Mines | A large section of the Mines collapsed 2084 | -10/Mines | Learned 2 Materials zone layouts 2134 | -10/Mines | Deemed a non-threat by the Exiles lab entrance 2134 | -10/Mines | Discovered new exit (range 5) 2143 | -10/Mines | Entered Exiles 2143 | -10/Exiles | Accompanied by 1 ally 2169 | -10/Exiles | Discovered new exit (range 15) 2190 | -10/Exiles | Met 8R-AWN 2214 | -10/Exiles | Met EX-HEX 2271 | -10/Exiles | Met EX-DEC 2302 | -10/Exiles | Met EX-BIN 2324 | -10/Exiles | Aligned with FarCom system 2326 | -10/Exiles | Given EX-Vault access code 2364 | -10/Exiles | Opened EX-Vault 2379 | -10/Exiles | Found Flying Fortress v7 2418 | -10/Exiles | Warned to stay clear of 0b10 Research branches 2519 | -10/Exiles | Discovered new exit (range 11) 2537 | -10/Exiles | Left Exiles lab with Flying Fortress v7 2537 | -10/Exiles | Entered Mines 2537 | -9/Mines | Accompanied by 1 ally 2591 | -9/Mines | Discovered new exit (range 5) 2627 | -9/Mines | Learned location of 1 exit from Lower Caves 2712 | -9/Mines | Assembled infested the area 2717 | -9/Mines | Assisted by a Guerilla fighting off Assembled 2780 | -9/Mines | Entered Materials 2780 | -8/Materials | Evolved 4 slots: Propulsion x2, Utility x2 2781 | -8/Materials | Identified exit to Factory 2949 | -8/Materials | Garrison activated, responded to threat 3453 | -8/Materials | Entered Factory 3453 | -7/Factory | Evolved 2 slots: Power x1, Utility x1 3475 | -7/Factory | Build established: Scout 3663 | -7/Factory | Identified exit to Storage 3663 | -7/Factory | Identified exit to Lower Caves 3841 | -7/Factory | Build established: Mutant 4572 | -7/Factory | Entered Lower Caves 4573 | -7/Lower Caves | Identified exit to Lower Caves 4599 | -7/Lower Caves | Encountered a Warlord checkpoint 4711 | -7/Lower Caves | Attracted the attention of an 0b10 checkpoint 4893 | -7/Lower Caves | Ambushed by wild Derelicts 4908 | -7/Lower Caves | Entered another Lower Caves area 4922 | -7/Lower Caves | Attracted the attention of an 0b10 checkpoint 4941 | -7/Lower Caves | Discovered new exit (range 7) 5081 | -7/Lower Caves | Attracted the attention of an 0b10 outpost 5237 | -7/Lower Caves | Learned 4 Factory zone layouts 5246 | -7/Lower Caves | Discovered new exit (range 9) 5252 | -7/Lower Caves | Entered Zion 5294 | -7/Zion | System corruption cleaned by Quarantine Array 5313 | -7/Zion | Learned Factory interactive machine intel 5315 | -7/Zion | Learned location of 1 exit from Factory 5388 | -7/Zion | Acquired unknown access codes intercepted by a Zionite 5398 | -7/Zion | Learned location of Recycling (-7) 5465 | -7/Zion | Given A8's code to call for help 5490 | -7/Zion | Rebuked by Imprinter 5499 | -7/Zion | Attempted to imprint without authorization 5499 | -7/Zion | Attacked by Zionites 5598 | -7/Zion | Spotted Z7-RMH(B) 5599 | -7/Zion | Spotted L8-TE8(B) 5667 | -7/Zion | Opened final containment barrier to the Deep Caves 5675 | -7/Zion | Discovered new exit (range 5) 5676 | -7/Zion | Saw the warning signs outside the Deep Caves entrance 5677 | -7/Zion | Entered Deep Caves 5760 | -7/Deep Caves | Attacked by Z-Imprinter 5774 | -7/Deep Caves | Core integrity fell below 50% 5786 | -7/Deep Caves | Z-Facility disabled 5796 | -7/Deep Caves | Core integrity fell below 20% 5802 | -7/Deep Caves | Destroyed by Z-Imprinter with Zionite Laser-M Last Messages --------------- Containment barrier disabled. Signature recorded so we know who to blame when the place goes to hell. Again. JN-4C2(z) pulls a Mak. Shrapnel Gun out of the Twisted Machinery. EXIT=FOUND The room is plastered with warning signs of various forms. [Achievement: Signs Are For Wimps] [Achievement: Adventurer] LOCATION=UNKNOWN GOAL=ESCAPE NEW_ZION: Z-Facility proximity alert. Gatling Laser destroyed. Flying Fortress v7 destroyed. Z-Imprinter: GET AWAY FROM HERE! I've worked too hard for our future just to have you ruin everything! Imp. Heat Sink destroyed. Minigun destroyed. Imp. Light Armor Plating destroyed. Imp. Deuterium Engine destroyed. Z-Facility disabled. KE Penetrator destroyed. Mic. Nuclear Core destroyed. Map ----- +----------------------------------------------------+ | ?????????????????????????"""" | | ????????????????????????""""" | | ????????????????????????"" | | ??????????????????????????""" | | ?????????????????????????"""" | | ????????????????????????""""" | | ???????????????????????"""""" | | ??????????????????????"" " " | | ??????????????????????""" | | ?????????????????????""" | | ?????????????????????"""" | | ??????????????????????""" | | ???????????????????????"""" | | ?????????????????????"""""""" | | ?????????????????????" | | ?????????????????????" """ | | ?????????????????????"? ?"""" | | ????????????????????"" ??""""" | | ????????????????????"" """"""" | | ????????????????????"" """"""" | | ????????????????????"" """"" z | | ????????????????????"" """ z | | ???????????????????""" | | ??????????????????""""""""" oI | | ?????????? """""""" | | ?????????? @ | | ?????????? | | ?????????? | | ??????????? ? | | ??????????? ? | | ???????????? ? | | ???????????? #;### ?? | | ????????????# ######??## ####?? | | ?????????????# ##?????????#####????? | | ?????????????### #####???????????????????? | | ???????????????##########????????????????????????? | | ?????????????????????????????????????????????????? | | | | | | | | | | | | | | | | | | | | | | | | | | | +----------------------------------------------------+ Best States ------------- Heat Dissipation 89 Energy Generation 27 Energy Capacity 480 Matter Stores 300 Matter Capacity 300 Sight Range 18 Robot Scan Range 15 Terrain Scan Range 14 Terrain Scan Density 10 Armor Coverage 225 Evasion (%) 60 Targeting Accuracy 5 Recoil Reduction 4 Matter Filtering 30 Kinecelleration 30 Salvage Targeting 2 Item Schematics ----------------- Lrg. Storage Unit | -8/Materials | Scanalyzed Robot Schematics ------------------ None Fabricated ------------ Nothing Alien Tech Used ----------------- None Achievements -------------- Adventurer Hunted Signs Are For Wimps Challenges ------------ None Game ------ Seed MiniIonicCannon Manual? 0 Play Time 02:00:07 Cumulative 26.0 hours Start 2024.08.26 @ 08:58:55 End 2024.08.26 @ 11:05:15 Sessions 1 Manual Loads 0 Difficulty Rogue Special Mode None Game No. 24 Rogue 24 Adventurer 0 Explorer 0 Win Type - Total 0 Types 0/0/0/0/0/0/0/0/0 Lore% 13 Gallery% 27 Achievement% 20 Wizard Run 0 Options --------- Layout 0 ASCII 0 Keyboard 0 Movement Mouse Keybinds 0 Fullscreen 1 Font 24/CogTall Map View 113x50 Zoom Use 67% Tactical HUD 0 Map Filters NONE Filters NONE Steam 1 RUN: 34a232de-cec7-4fae-bc7d-c6c0e83030a2